bitfinex-derivatives/quotes_ETHF0:USTF0_20250709
["timestamp","ask_amount","ask_price","bid_price","bid_amount"]
[1752066618786,1.9052,2663.9,2663.8,0.75068]
[1752066618980,2.65587,2663.9,2663.8,0.75068]
[1752066619587,1.9052,2663.9,2663.8,0.75068]
[1752066620088,1.9052,2663.9,2663.8,1.37918]
[1752066620482,0.6449,2664.0,2663.9,0.75067]
[1752066620682,0.7506,2664.2,2664.1,0.75058]
[1752066620882,1.4348,2664.2,2664.1,0.75058]
[1752066621082,0.6842,2664.2,2664.1,0.75058]
[1752066621284,2.08711569,2664.2,2664.1,0.75058]
[1752066622086,2.83769569,2664.2,2664.1,0.75058]
[1752066622288,2.83769569,2664.2,2664.1,1.39058]
[1752066622586,3.06931569,2664.2,2663.7,3.2078]
[1752066622785,1.6664,2664.2,2664.1,1.39061]
[1752066622983,0.6842,2664.2,2664.1,1.39061]
[1752066623183,0.6842,2664.2,2663.6,0.75074]
[1752066623184,11.57830343,2664.2,2663.6,0.75074]
[1752066623385,0.75073,2663.8,2663.7,0.7507]
[1752066623679,0.75089,2663.2,2663.1,0.75088]
[1752066623886,0.75093,2663.0,2662.9,0.75093]
[1752066624083,2.11011,2663.1,2663.0,0.75092]
[1752066624289,0.75095,2662.9,2662.8,3.2078]
[1752066624591,0.675,2663.0,2662.8,3.8478]
[1752066624890,2.11009,2663.1,2662.9,0.75093]
[1752066625282,1.3592,2663.1,2662.8,0.64]
[1752066625595,2.11012,2663.1,2663.0,3.95872]
[1752066625785,0.675,2663.3,2663.0,3.95871]
[1752066625984,2.11328,2663.2,2663.1,0.75089]
[1752066626287,1.3624,2663.2,2663.1,1.39089]
[1752066626486,0.75089,2663.1,2663.0,3.2078]
[1752066626688,1.3624,2663.2,2662.6,5.08534]
[1752066626892,2.11328,2663.2,2663.1,0.75089]
[1752066627286,2.79748,2663.2,2663.1,0.75089]
[1752066627684,0.6842,2663.2,2663.1,1.39089]
[1752066627883,1.43507,2663.2,2663.1,1.39089]
[1752066628284,1.43507,2663.2,2663.1,0.75089]
[1752066628490,2.77917,2663.2,2663.1,0.75089]
[1752066628885,3.2078,2663.6,2663.1,0.64]
[1752066629086,0.75082,2663.4,2663.3,3.95863]
[1752066629279,2.84122341,2663.4,2663.3,4.59863]
[1752066629484,2.09040341,2663.4,2663.3,4.59863]
[1752066629686,1.3441,2663.5,2663.4,0.75081]
[1752066629887,2.0283,2663.5,2663.4,1.39081]
[1752066630090,1.40623816,2663.5,2663.4,1.39081]
[1752066630286,1.40623816,2663.5,2663.4,2.33281]
[1752066630489,0.75073,2663.7,2663.6,0.75073]
[1752066630789,2.09050748,2663.7,2663.6,1.39073]
[1752066631386,2.84122748,2663.7,2663.6,1.39073]
[1752066631586,4.16352748,2663.7,2663.6,1.39073]
[1752066631793,4.16352748,2663.7,2663.6,0.75075]
[1752066632190,4.16352748,2663.7,2663.6,1.39075]
[1752066632591,2.75722,2663.7,2663.6,1.39075]
[1752066632782,2.75722,2663.7,2663.6,0.75075]
[1752066633386,0.75077,2663.6,2663.5,0.75076]
[1752066633591,2.02717,2663.6,2663.5,0.75076]
[1752066633790,0.75089,2663.2,2663.1,0.75088]
[1752066633989,1.43509,2663.2,2663.0,3.9587]
[1752066634188,0.75089,2663.1,2663.0,3.9587]
[1752066634494,0.75098,2662.8,2662.7,3.2078]
[1752066634992,1.9618,2663.0,2662.5,3.35510601]
[1752066634993,0.75103,2662.6,2662.5,3.35510601]
[1752066635193,0.75106,2662.5,2662.4,3.95889]
[1752066635387,0.75106,2662.5,2662.4,4.59889]
[1752066635789,0.75105,2662.6,2662.5,0.75105]
[1752066637188,1.2764,2662.7,2662.4,3.8478]
[1752066637398,0.75106,2662.5,2662.4,4.59886]
[1752066637593,0.75106,2662.5,2662.4,3.2078]
[1752066637793,0.75106,2662.5,2662.4,3.95889]
[1752066637996,1.43526,2662.5,2662.4,3.95889]
[1752066638492,0.6842,2662.5,2662.4,4.59889]
[1752066638793,0.75105,2662.6,2662.5,0.75106]
[1752066638987,1.3642,2662.6,2662.5,0.75106]
[1752066639187,41.55097,2662.9,2662.8,0.75098]
[1752066639383,1.87754,2662.7,2662.1,3.95895]
[1752066639586,0.75114,2662.3,2662.2,0.75115]
[1752066639796,0.75115,2662.2,2662.1,3.95896]
[1752066640091,0.75128,2661.8,2661.7,0.75127]
[1752066640395,0.75128,2661.8,2661.7,0.64]
[1752066640589,0.75129,2661.7,2661.6,0.7513]
[1752066640789,1.3158,2661.7,2661.6,1.3913]
[1752066641190,2.06709,2661.7,2661.6,1.3913]
[1752066641696,1.3158,2661.7,2661.6,1.3913]
[1752066642795,0.75125,2661.9,2661.8,0.75126]
[1752066643499,1.39199,2662.1,2662.0,0.7512]
[1752066643798,0.75126,2661.8,2661.7,3.2078]
[1752066643999,0.75128,2661.8,2661.7,1.39127]
[1752066644199,1.43548,2661.8,2661.7,1.39127]
[1752066644494,0.6842,2661.8,2661.7,1.39127]
[1752066645198,0.75117,2662.2,2662.1,0.75117]
[1752066645386,1.874,2662.5,2661.8,1.87809]
[1752066645387,0.75113,2662.3,2661.8,1.87809]
[1752066645591,0.75113,2662.3,2662.2,0.75115]
[1752066645791,1.43533,2662.3,2662.2,0.75115]
[1752066646197,0.6842,2662.3,2661.7,4.7898]
[1752066646392,0.75126,2661.8,2661.7,2.39353]
[1752066646597,1.87823,2661.7,2660.7,0.942]
[1752066646793,28.5141,2661.7,2660.9,3.2078]
[1752066646993,2.0081,2661.7,2661.3,3.2078]
[1752066647194,2.7594,2661.7,2661.6,0.64]
[1752066647396,0.75129,2661.7,2661.6,0.64]
[1752066647604,0.75133,2661.6,2661.5,0.75134]
[1752066647803,0.75133,2661.6,2661.5,0.64]
[1752066648198,1.3283,2661.7,2661.6,0.75132]
[1752066648399,0.75135,2661.5,2661.4,0.75136]
[1752066648601,1.43555,2661.5,2661.4,0.75136]
[1752066648799,0.75137,2661.4,2661.3,3.95917]
[1752066648998,3.2078,2661.4,2660.9,3.2078]
[1752066649199,0.75145,2661.2,2661.1,0.75145]
[1752066649396,0.75144,2661.2,2661.1,0.75145]
[1752066649703,0.75149,2661.1,2661.0,0.75148]
[1752066649907,0.75149,2661.1,2661.0,1.39148]
[1752066650208,0.75146,2661.1,2661.0,1.39147]
[1752066650408,1.339,2661.3,2660.6,3.2078]
[1752066650609,0.75157,2660.7,2660.6,3.95938]
[1752066651108,0.7516,2660.6,2660.5,0.75161]
[1752066651501,0.75158,2660.7,2660.6,0.75158]
[1752066651812,0.7516,2660.7,2660.6,0.75159]
[1752066652003,0.75161,2660.6,2660.5,0.75161]
[1752066652211,1.2413,2660.8,2660.3,3.2078]
[1752066652419,1.2413,2660.8,2660.6,0.75158]
[1752066652605,1.99286,2660.8,2660.7,0.75157]
[1752066652917,3.2078,2661.3,2660.7,1.5916]
[1752066653106,0.37980582,2661.4,2661.3,0.7514]
[1752066653609,6.75222718,2661.6,2661.0,3.2078]
[1752066653808,0.75141,2661.3,2661.2,0.75143]
[1752066654011,0.75139,2661.4,2661.3,0.7514]
[1752066654602,4.87388718,2661.6,2661.0,3.2078]
[1752066654603,1.2413,2661.6,2661.5,0.75134]
[1752066654809,4.61479,2661.7,2661.6,0.75132]
[1752066655013,3.2078,2661.7,2661.6,0.75132]
[1752066656509,0.6763,2662.2,2662.0,0.75118]
[1752066656714,0.75122,2662.0,2661.9,0.7512]
[1752066657110,41.55114,2662.3,2662.2,0.75115]
[1752066657303,42.96473795,2662.3,2662.2,0.75115]
[1752066657510,0.75117,2662.2,2662.1,0.75115]
[1752066657710,2.02927,2662.2,2662.1,0.75115]
[1752066657916,0.7512,2662.1,2662.0,0.75118]
[1752066658112,1.2781,2662.2,2662.1,0.75118]
[1752066658414,3.2078,2662.4,2662.3,0.75112]
[1752066658610,3.33006217,2662.8,2662.6,0.75102]
[1752066658611,0.75103,2662.7,2662.6,0.75102]
[1752066658811,3.2078,2662.8,2662.7,0.75101]
[1752066659310,3.95878,2662.8,2662.7,0.75101]
[1752066662018,3.2078,2662.8,2662.7,0.75101]
[1752066662214,3.95878,2662.8,2662.7,0.75101]
[1752066662615,0.75102,2662.7,2662.6,0.75101]
[1752066663018,1.0163,2662.7,2662.3,3.2078]
[1752066663219,0.75109,2662.5,2662.4,0.75107]
[1752066663611,2.03849,2662.5,2662.4,0.75107]
[1752066663806,10.5115,2662.5,2661.7,0.9493]
[1752066664020,0.75125,2661.9,2661.8,0.75124]
[1752066664317,0.75122,2662.0,2661.9,0.7512]
[1752066664810,2.03762,2662.0,2661.9,0.7512]
[1752066665418,0.75122,2662.0,2661.9,0.7512]
[1752066665917,0.7512,2662.1,2662.0,0.75118]
[1752066666818,3.2078,2662.2,2662.1,0.75118]
[1752066667014,1.2864,2662.3,2662.0,0.75119]
[1752066667216,0.75117,2662.2,2662.1,0.75115]
[1752066668416,0.75119,2662.1,2662.0,0.75117]
[1752066668617,2.00909,2662.1,2662.0,0.75117]
[1752066668813,0.75123,2662.0,2661.9,0.75121]
[1752066669315,2.00909,2662.1,2662.0,0.7512]
[1752066669821,0.75125,2661.9,2661.8,0.75122]
[1752066670319,0.6511,2661.9,2661.8,1.39352]
[1752066670619,1.40233,2661.9,2661.8,1.39352]
[1752066672323,1.2579,2662.1,2662.0,0.7512]
[1752066672524,1.2579,2662.1,2662.0,1.3935]
[1752066672823,0.75112,2662.3,2662.2,0.75114]
[1752066673021,0.75118,2662.2,2662.1,0.75115]
[1752066673219,1.40228,2662.2,2662.1,1.39345]
[1752066674125,2.82350865,2662.2,2662.1,1.39345]
[1752066675414,0.6511,2662.2,2662.1,1.39345]
[1752066675813,1.40225,2662.2,2662.1,1.39345]
[1752066676011,0.6511,2662.2,2662.1,0.75115]
[1752066676213,0.6511,2662.2,2662.1,1.39345]
[1752066676818,1.40225,2662.2,2662.1,1.39345]
[1752066677223,1.40225,2662.2,2662.1,0.6423]
[1752066677624,0.7512,2662.0,2661.9,0.75685306]
[1752066677826,1.4023,2662.0,2661.9,0.75685306]
[1752066678420,2.6637,2662.0,2661.9,1.39915306]
[1752066678619,2.6637,2662.0,2661.9,0.75685306]
[1752066679021,3.68,2662.0,2661.9,0.00563306]
[1752066679221,6.8878,2662.0,2661.9,0.00563306]
[1752066679423,8.30879066,2662.0,2661.9,0.00563306]
[1752066679620,1.87812,2661.9,2661.2,1.0225]
[1752066679827,5.08626,2661.4,2660.9,0.75149]
[1752066680021,0.75151,2661.0,2660.9,0.75149]
[1752066680219,0.75151,2661.0,2660.9,0.6423]
[1752066681025,0.75151,2661.0,2660.9,1.39381]
[1752066681422,0.75148,2661.1,2661.0,0.75147]
[1752066682124,0.75145,2661.2,2661.1,0.75143]
[1752066682426,0.75143,2661.2,2661.1,0.75143]
[1752066682626,1.38353,2661.2,2661.1,1.42433]
[1752066682924,1.38353,2661.2,2661.1,0.6729]
[1752066683124,1.38353,2661.2,2661.1,1.42436]
[1752066683627,2.11791,2661.3,2661.2,0.75143]
[1752066684028,0.75143,2661.2,2661.1,0.75144]
[1752066684224,1.38353,2661.2,2661.1,0.75144]
[1752066684526,1.38353,2661.2,2661.1,1.42434]
[1752066684919,0.75146,2661.1,2661.0,3.95926]
[1752066685120,0.75144,2661.2,2661.1,0.75143]
[1752066685324,0.75144,2661.2,2661.1,1.42433]
[1752066685524,2.11792,2661.3,2661.2,0.75143]
[1752066685720,2.11792,2661.3,2661.2,1.42433]
[1752066685925,2.75,2661.3,2661.2,1.42433]
[1752066686121,1.9986,2661.3,2661.2,1.42433]
[1752066686325,0.7514,2661.4,2661.3,0.75137]
[1752066686526,1.3835,2661.4,2661.3,1.42427]
[1752066687125,0.6321,2661.4,2661.3,1.42427]
[1752066687321,0.75132,2661.6,2661.5,0.75132]
[1752066687623,1.3404,2661.7,2661.5,0.75132]
[1752066687624,2.09171,2661.7,2661.6,0.75132]
[1752066687831,3.39442615,2661.7,2661.6,1.42422]
[1752066688223,2.72379,2661.7,2661.6,1.42422]
[1752066688427,2.72379,2661.7,2661.6,0.75132]
[1752066688926,1.9725,2661.7,2661.6,1.42422]
[1752066689233,3.95901,2662.0,2661.9,0.75123]
[1752066689529,6.0133616,2662.0,2661.9,0.75123]
[1752066689724,0.75129,2661.8,2661.7,0.75126]
[1752066689930,1.38339,2661.8,2661.7,0.75126]
[1752066690125,1.38339,2661.8,2661.7,1.42416]
[1752066690325,2.80583578,2661.8,2661.7,1.42416]
[1752066690531,1.38339,2661.8,2661.7,1.42416]
[1752066690724,1.38339,2661.8,2661.7,1.42419]
[1752066691034,2.34169,2661.8,2661.7,0.75129]
[1752066691428,2.34169,2661.8,2661.7,1.42419]
[1752066692532,2.34166,2661.8,2661.7,1.42419]
[1752066692734,0.6321,2661.8,2661.7,1.42419]
[1752066693536,1.38336,2661.8,2661.7,1.42419]
[1752066693738,2.64466,2661.8,2661.7,1.42419]
[1752066694337,2.01256,2661.8,2661.7,0.75129]
[1752066694639,2.64466,2661.8,2661.7,1.42419]
[1752066694838,2.64466,2661.8,2661.7,0.75129]
[1752066695236,2.64466,2661.8,2661.7,1.42419]
[1752066696440,3.60296,2661.8,2661.7,0.75129]
[1752066697236,5.02579449,2661.8,2661.7,0.75129]
[1752066697836,3.31623449,2661.8,2661.7,0.75129]
[1752066698036,1.8934,2661.8,2661.7,1.42419]
[1752066698440,2.64466,2661.8,2661.7,1.42419]
[1752066698641,1.8934,2661.8,2661.7,1.42419]
[1752066698845,1.2613,2661.8,2661.7,1.42419]
[1752066699048,1.8934,2661.8,2661.7,1.42419]
[1752066699442,2.64466,2661.8,2661.7,1.42419]
[1752066699742,1.8934,2661.8,2661.7,1.42419]
[1752066699942,1.8934,2661.8,2661.7,0.75129]
[1752066700239,4.06759306,2661.8,2661.7,0.6729]
[1752066700442,4.06759306,2661.8,2661.7,1.42419]
[1752066700639,2.68423306,2661.8,2661.7,1.42419]
[1752066700844,0.00563306,2662.2,2661.8,1.87813]
[1752066701041,0.00563306,2662.2,2662.0,3.2078]
[1752066701344,0.00563306,2662.2,2662.1,2.44658]
[1752066701743,0.63773306,2662.2,2662.1,1.42408]
[1752066701944,0.00563306,2662.2,2662.1,1.42408]
[1752066702144,0.63773306,2662.2,2662.1,1.42408]
[1752066702342,0.00563306,2662.2,2662.1,1.42408]
[1752066702647,0.63773306,2662.2,2662.1,1.42408]
[1752066705745,0.63773306,2662.2,2662.1,0.75118]
[1752066705942,2.00653306,2662.2,2662.1,1.42408]
[1752066708046,0.63773306,2662.2,2662.1,1.42408]
[1752066708250,0.00563306,2662.2,2662.1,2.44658]
[1752066708444,0.75102,2662.7,2662.6,0.75101]
[1752066708647,0.6321,2662.7,2662.6,1.42391]
[1752066708941,2.05460005,2662.7,2662.6,1.42391]
[1752066709147,0.6321,2662.7,2662.6,4.63171]
[1752066709743,1.38311,2662.7,2662.6,1.42391]
[1752066709946,2.33521,2662.7,2662.6,0.6729]
[1752066710450,2.33521,2662.7,2662.6,1.42393]
[1752066710651,1.38311,2662.7,2662.6,1.42393]
[1752066712152,0.6321,2662.7,2662.6,1.42393]
[1752066712450,2.61628718,2663.1,2662.6,1.42393]
[1752066712451,3.2078,2663.2,2662.8,1.87742]
[1752066712752,3.95868,2663.2,2663.1,0.75089]
[1752066712948,4.61328,2663.2,2663.1,0.75089]
[1752066713147,5.97448,2663.2,2663.1,0.75089]
[1752066713349,2.76668,2663.2,2663.1,0.75089]
[1752066714962,0.6757,2663.4,2663.3,0.75084]
[1752066715165,2.74983773,2663.4,2663.3,0.75084]
[1752066715463,1.41953773,2663.4,2663.3,0.75084]
[1752066716065,0.75077,2663.6,2663.5,0.75078]
[1752066716261,2.07374922,2663.6,2663.5,0.75078]
[1752066716462,0.6546,2663.6,2663.5,0.75078]
[1752066716662,0.6546,2663.6,2663.5,3.95858]
[1752066717264,0.75078,2663.5,2663.4,0.75079]
[1752066717461,1.40538,2663.5,2663.4,1.42729]
[1752066717666,2.76278,2663.5,2663.4,0.75079]
[1752066718070,2.76278,2663.5,2663.4,1.42729]
[1752066718265,2.012,2663.5,2663.4,1.42729]
[1752066718659,3.2078,2664.1,2663.5,1.87696]
[1752066718863,1.2811,2664.2,2664.1,0.75061]
[1752066719073,1.41370934,2664.2,2664.1,4.63491]
[1752066719274,3.2078,2664.7,2664.1,4.63491]
[1752066719275,42.0811,2664.7,2664.6,0.75047]
[1752066719573,2.68614,2664.7,2664.6,0.6765]
[1752066719877,43.6878,2664.7,2664.2,1.5751]
[1752066720171,43.6878,2664.7,2664.4,0.75052]
[1752066720172,0.75052,2664.5,2664.4,0.75052]
[1752066720360,0.6546,2664.5,2664.4,1.42702]
[1752066720761,42.0811,2664.7,2664.6,0.75047]
[1752066720971,5.08374,2665.0,2664.4,4.8308]
[1752066721171,0.7504,2664.9,2664.8,0.7504]
[1752066721374,5.23927,2665.0,2664.9,0.75039]
[1752066721669,0.75039,2664.9,2664.8,0.75039]
[1752066722065,0.75043,2664.8,2664.7,0.75044]
[1752066722469,0.75045,2664.7,2664.6,0.75045]
[1752066722775,0.75043,2664.8,2664.7,0.75044]
[1752066723268,0.75044,2664.8,2664.7,0.75044]
[1752066723467,1.3597,2664.9,2664.8,0.75041]
[1752066723672,0.6839,2665.1,2664.8,3.2078]
[1752066723871,0.6546,2664.9,2664.5,3.2078]
[1752066724168,0.75043,2664.8,2664.7,0.75044]
[1752066724361,2.11013,2664.8,2664.7,0.75044]
[1752066724662,2.76473,2664.8,2664.7,1.42694]
[1752066724866,2.0143,2664.8,2664.7,1.42694]
[1752066725064,2.76471,2664.8,2664.7,1.42694]
[1752066725967,0.75047,2664.6,2664.5,3.2078]
[1752066726166,0.75056,2664.3,2664.2,0.6286]
[1752066726367,0.75054,2664.4,2664.3,0.75053]
[1752066727873,2.02651,2664.5,2664.2,1.3051]
[1752066728170,0.75039,2665.0,2664.9,0.75037]
[1752066728375,0.6546,2665.0,2664.9,3.95817]
[1752066728565,0.75032,2665.2,2665.1,0.7503]
[1752066728769,1.40492,2665.2,2665.1,0.7503]
[1752066728974,2.66382,2665.2,2665.1,0.7503]
[1752066729770,2.66382,2665.2,2665.1,0.6765]
[1752066730277,0.75033,2665.1,2665.0,0.75033]
[1752066730472,1.9135,2665.2,2664.8,1.5731]
[1752066730671,0.75044,2664.8,2664.7,0.75042]
[1752066730873,0.75044,2664.7,2664.6,3.95824]
[1752066731170,1.3078,2664.7,2664.6,4.63474]
[1752066731570,1.9624,2664.7,2664.6,4.63474]
[1752066731779,1.37948,2665.0,2664.6,4.8308]
[1752066732074,4.49198718,2665.3,2664.9,3.2078]
[1752066732075,0.75029,2665.3,2664.9,3.2078]
[1752066732274,1.40489,2665.3,2665.2,1.4268]
[1752066732474,2.71269,2665.3,2665.2,1.4268]
[1752066732871,1.9624,2665.3,2665.2,1.4268]
[1752066733078,40.8,2665.4,2665.3,0.75027]
[1752066733577,41.4546,2665.4,2665.3,0.75027]
[1752066733778,42.7909,2665.4,2665.3,1.42677]
[1752066734078,43.54115,2665.4,2665.3,1.42677]
[1752066735279,43.54115,2665.4,2665.3,0.6765]
[1752066735580,6.19234782,2666.7,2665.3,9.8308]
[1752066735877,0.7501,2665.9,2665.8,3.2078]
[1752066736076,0.75021,2665.6,2665.5,0.75021]
[1752066736280,0.6546,2665.9,2665.4,3.2078]
[1752066736474,0.6546,2665.9,2665.6,0.75017]
[1752066736680,0.7502,2665.6,2665.4,3.2078]
[1752066736884,0.7502,2665.6,2665.5,0.75022]
[1752066737574,1.3488,2665.8,2665.4,3.2078]
[1752066737575,0.75018,2665.7,2665.6,0.75019]
[1752066737771,0.75016,2665.7,2665.6,0.75017]
[1752066738175,0.75016,2665.8,2665.4,3.2078]
[1752066738382,0.75022,2665.5,2665.4,3.2078]
[1752066738682,26.9756,2665.9,2665.4,3.2078]
[1752066738879,0.6546,2665.9,2665.4,3.8843]
[1752066739181,0.75013,2665.8,2665.7,0.75014]
[1752066739383,1.40473,2665.8,2665.7,0.75014]
[1752066739884,0.9633,2665.9,2665.8,0.75013]
[1752066740080,0.6855,2666.0,2665.9,0.7501]
[1752066740577,41.55001,2666.3,2665.7,3.8843]
[1752066740783,0.75002,2666.2,2666.1,3.2078]
[1752066740978,1.42802,2666.2,2666.1,3.95783]
[1752066741281,0.75008,2666.0,2665.7,3.2078]
[1752066741486,0.75004,2666.2,2666.1,0.75004]
[1752066741786,0.75006,2666.1,2666.0,3.95786]
[1752066742084,1.42806,2666.1,2666.0,4.64206]
[1752066742684,1.42806,2666.1,2666.0,0.75006]
[1752066742885,1.42806,2666.1,2666.0,0.6842]
[1752066743188,0.678,2666.1,2666.0,1.43428]
[1752066743486,1.42805,2666.1,2666.0,1.43428]
[1752066743879,0.678,2666.1,2666.0,1.43428]
[1752066744779,5.08268,2666.5,2666.0,1.43428]
[1752066744982,3.34543022,2667.4,2666.4,5.82408718]
[1752066745188,4.48734376,2667.7,2667.3,3.2078]
[1752066745387,4.48734376,2667.7,2667.6,3.95743]
[1752066745789,5.87117224,2667.7,2667.6,3.95743]
[1752066745983,1.38382848,2667.7,2667.6,3.95743]
[1752066746283,1.35890889,2667.7,2667.6,3.95743]
[1752066747184,7.32220889,2667.7,2667.1,3.2078]
[1752066747386,35.6279312,2667.6,2666.7,3.2078]
[1752066747682,3.2078,2667.0,2666.4,3.2078]
[1752066747882,0.9633,2667.5,2666.8,3.2078]
[1752066748085,0.74975,2667.2,2667.1,3.2078]
[1752066748687,27.5113,2667.2,2666.8,3.2078]
[1752066748889,0.74982,2666.9,2666.8,3.2078]
[1752066749089,1.71312,2666.9,2666.8,3.2078]
[1752066749283,0.74982,2666.9,2666.8,3.2078]
[1752066749884,2.05192,2666.9,2666.8,3.2078]
[1752066751885,3.01522,2666.9,2666.8,3.2078]
[1752066752087,0.9633,2667.9,2666.8,9.1805]
[1752066752282,1.34800782,2667.8,2667.6,3.95741]
[1752066752587,2.09760782,2667.7,2667.6,3.2078]
[1752066752786,3.38570782,2667.7,2667.6,3.2078]
[1752066753390,2.63610782,2667.7,2667.6,3.95743]
[1752066753591,1.2881,2667.7,2667.6,3.95743]
[1752066753790,1.2881,2667.7,2667.6,3.2078]
[1752066753992,2.0377,2667.7,2667.6,3.2078]
[1752066754193,2.0377,2667.7,2667.6,3.95743]
[1752066754592,1.2881,2667.7,2667.6,3.95743]
[1752066754892,2.0377,2667.7,2667.6,3.95743]
[1752066755093,2.0377,2667.7,2667.6,3.2078]
[1752066756483,2.0377,2667.7,2667.6,3.95743]
[1752066756896,2.0377,2667.7,2667.6,3.2078]
[1752066757687,2.9294,2667.7,2667.3,3.2078]
[1752066757894,0.74968,2667.4,2667.3,3.2078]
[1752066758095,28.98498,2667.4,2667.3,3.2078]
[1752066758294,33.98498,2667.4,2667.3,3.2078]
[1752066758694,7.39098,2667.4,2667.3,3.2078]
[1752066758902,27.285,2667.4,2667.3,3.95751]
[1752066759194,28.03468,2667.4,2667.3,3.2078]
[1752066759599,28.03468,2667.4,2667.3,3.95751]
[1752066760197,28.99798,2667.4,2667.3,3.2078]
[1752066760398,1.87433,2667.3,2666.9,3.2078]
[1752066760703,1.4278,2667.0,2666.9,3.2078]
[1752066761002,28.9841,2667.0,2666.9,3.2078]
[1752066762810,1.87463,2666.9,2666.1,4.1805]
[1752066762997,0.74997,2666.5,2666.4,0.74995]
[1752066763304,1.42797,2666.5,2666.4,0.74995]
[1752066763804,0.74999,2666.4,2666.3,0.74997]
[1752066764007,0.75002,2666.3,2666.2,0.75001]
[1752066764205,2.66942,2666.3,2666.2,1.43421]
[1752066764904,1.99142,2666.3,2666.2,1.43421]
[1752066765605,0.678,2666.3,2666.2,1.43421]
[1752066765806,1.42799,2666.3,2666.2,1.43421]
[1752066767506,0.678,2666.3,2666.2,1.43421]
[1752066767708,1.42799,2666.3,2666.2,1.43421]
[1752066769212,0.678,2666.3,2666.2,1.43421]
[1752066769708,1.42799,2666.3,2666.2,1.43421]
[1752066770217,0.678,2666.3,2666.2,1.43421]
[1752066771006,1.42799,2666.3,2666.2,1.43421]
[1752066772015,0.75005,2666.2,2666.0,3.2078]
[1752066772308,1.42705,2666.1,2666.0,4.63205]
[1752066774212,0.677,2666.1,2666.0,4.63205]
[1752066774407,0.75002,2666.3,2666.2,0.74999]
[1752066774610,0.75002,2666.3,2666.2,1.42419]
[1752066775210,1.42702,2666.3,2666.2,1.42419]
[1752066781617,0.677,2666.3,2666.2,1.42419]
[1752066782409,7.55203,2666.3,2665.9,0.9771]
[1752066782616,0.75013,2665.8,2665.7,0.75014]
[1752066782812,0.75016,2665.7,2665.6,3.2078]
[1752066783012,0.75025,2665.4,2665.3,4.59327]
[1752066783222,0.75025,2665.4,2665.3,2.05967]
[1752066783516,27.1822,2665.6,2665.5,0.75022]
[1752066783718,1.3618,2665.6,2665.5,0.75022]
[1752066783917,2.11199,2665.6,2665.5,0.75022]
[1752066785118,1.3618,2665.6,2665.5,0.75022]
[1752066785718,0.6542,2665.7,2665.6,0.75019]
[1752066786613,1.40436,2665.7,2665.6,0.75019]
[1752066786821,2.65376,2665.7,2665.6,0.75019]
[1752066788121,0.75022,2665.6,2665.5,0.7502]
[1752066788318,0.677,2665.5,2665.1,5.08362]
[1752066788617,2.08207,2665.4,2665.3,0.75025]
[1752066788821,2.75907,2665.4,2665.3,1.42445]
[1752066789621,2.0088,2665.4,2665.3,1.42445]
[1752066790120,2.75905,2665.4,2665.3,1.42445]
[1752066790912,0.75037,2665.1,2665.0,0.75034]
[1752066791116,2.41117,2665.1,2665.0,0.75034]
[1752066791521,3.72677,2665.1,2665.0,0.75034]
[1752066791817,2.9764,2665.1,2665.0,1.42454]
[1752066792017,2.9764,2665.1,2665.0,0.75034]
[1752066792519,3.72673,2665.1,2665.0,1.42454]
[1752066792720,2.74293,2665.1,2665.0,1.42454]
[1752066792921,2.74293,2665.1,2665.0,0.6742]
[1752066794119,3.72673,2665.1,2665.0,0.6742]
[1752066794318,4.36173,2665.1,2665.0,0.6742]
[1752066794720,4.36173,2665.1,2665.0,1.42456]
[1752066795123,0.75036,2665.0,2664.9,0.75038]
[1752066795320,2.74396,2665.0,2664.9,1.42458]
[1752066796225,2.74396,2665.0,2664.9,0.6742]
[1752066796523,0.75047,2664.6,2664.5,0.75049]
[1752066796721,27.78347,2664.6,2664.5,1.42469]
[1752066797223,0.75042,2664.8,2664.7,0.75044]
[1752066797422,27.78741,2664.8,2664.5,3.2078]
[1752066797617,27.78741,2664.8,2664.7,0.75044]
[1752066797817,27.78741,2664.8,2664.7,1.42464]
[1752066797818,0.677,2664.8,2664.7,1.42464]
[1752066798013,26.357,2664.8,2664.7,1.42464]
[1752066798223,27.78441,2664.8,2664.7,1.42464]
[1752066798422,29.02101,2664.8,2664.7,1.42464]
[1752066798920,1.6188,2665.1,2665.0,0.75036]
[1752066799126,1.2366,2665.3,2665.2,0.7503]
[1752066799321,29.62441714,2665.3,2665.2,0.7503]
[1752066799523,28.2736,2665.3,2665.2,0.7503]
[1752066799725,0.75032,2665.3,2665.0,1.42456]
[1752066799923,28.34692,2665.3,2665.2,0.75028]
[1752066800222,29.02392,2665.3,2665.2,0.75028]
[1752066801026,1.9136,2665.3,2665.2,0.75028]
[1752066801228,40.8,2665.5,2665.4,0.75025]
[1752066801428,67.8262,2665.5,2665.4,0.75025]
[1752066801627,69.1595,2665.5,2665.4,0.75025]
[1752066801826,69.90972,2665.5,2665.4,0.75025]
[1752066802628,69.23352,2665.5,2665.4,0.75025]
[1752066802929,69.23352,2665.5,2665.4,1.40155]
[1752066803427,42.88352,2665.5,2665.4,1.40155]
[1752066803629,69.23052,2665.5,2665.4,1.40155]
[1752066804229,42.88352,2665.5,2665.4,1.40155]
[1752066804429,70.5835518,2665.5,2665.4,1.40155]
[1752066804830,1.3530318,2665.5,2665.4,1.40155]
[1752066805026,0.75015,2665.8,2665.4,6.73402]
[1752066805227,1.35177984,2665.7,2665.6,0.75019]
[1752066805431,27.69877984,2665.7,2665.6,1.40149]